[Event "*** Titled Tuesday 3|2 Blitz"]
[Site "Chess.com"]
[Date "2015.05.05"]
[Round "6"]
[White "Tomsel"]
[Black "pKiLz5Rn9b"]
[Result "1/2-1/2"]
[WhiteElo "2342"]
[BlackElo "2259"]
[TimeControl "180+2"]
[EndTime "12:18:31 PDT"]
[Termination "Game drawn - insufficient material"]

1. d4 {[%clk 0:01:21.5]} 1... e6 {[%clk 0:02:53.6]} 2. Bf4 {[%clk 0:01:19.8]}
2... Nf6 {[%clk 0:02:54.3]} 3. e3 {[%clk 0:01:15.7]} 3... d5 {[%clk 0:02:54.1]}
4. Nd2 {[%clk 0:01:15.2]} 4... Bd6 {[%clk 0:02:54.4]} 5. Bg3 {[%clk 0:01:16.2]}
5... O-O {[%clk 0:02:55.2]} 6. Ngf3 {[%clk 0:01:17.5]} 6... c5 {[%clk
0:02:56.3]} 7. c3 {[%clk 0:01:18.8]} 7... Nc6 {[%clk 0:02:57.7]} 8. Bd3 {[%clk
0:01:19.9]} 8... Re8 {[%clk 0:02:58.3]} 9. Ne5 {[%clk 0:01:20.7]} 9... Qc7
{[%clk 0:02:57.5]} 10. f4 {[%clk 0:01:19]} 10... h6 {[%clk 0:02:53.2]} 11. O-O
{[%clk 0:01:19]} 11... Nd7 {[%clk 0:02:49.7]} 12. Nxf7 {[%clk 0:01:16.1]} 12...
Kxf7 {[%clk 0:02:43.4]} 13. f5 {[%clk 0:00:50.4]} 13... e5 {[%clk 0:02:42.8]}
14. Qh5+ {[%clk 0:00:26.4]} 14... Kf8 {[%clk 0:02:37.5]} 15. f6 {[%clk
0:00:27.5]} 15... Nxf6 {[%clk 0:02:36]} 16. Bh4 {[%clk 0:00:27.5]} 16... Be7
{[%clk 0:02:28.5]} 17. Bb5 {[%clk 0:00:09.5]} 17... e4 {[%clk 0:02:09.6]} 18.
Qxd5 {[%clk 0:00:08.6]} 18... Qd6 {[%clk 0:01:53.3]} 19. Qxd6 {[%clk 0:00:06.9]}
19... Bxd6 {[%clk 0:01:54.7]} 20. Nxe4 {[%clk 0:00:08.8]} 20... Rxe4 {[%clk
0:01:55]} 21. Bxf6 {[%clk 0:00:09.4]} 21... gxf6 {[%clk 0:01:56]} 22. Rxf6+
{[%clk 0:00:11.3]} 22... Ke7 {[%clk 0:01:57.6]} 23. Raf1 {[%clk 0:00:12.1]}
23... Be6 {[%clk 0:01:52.8]} 24. Rxh6 {[%clk 0:00:08.3]} 24... Rf8 {[%clk
0:01:53.9]} 25. Rxf8 {[%clk 0:00:05.9]} 25... Kxf8 {[%clk 0:01:55.2]} 26. Kf2
{[%clk 0:00:04.4]} 26... cxd4 {[%clk 0:01:53.2]} 27. cxd4 {[%clk 0:00:04.4]}
27... Kg7 {[%clk 0:01:51]} 28. Rh5 {[%clk 0:00:02.7]} 28... Nb4 {[%clk
0:01:47.4]} 29. a3 {[%clk 0:00:02.8]} 29... Na6 {[%clk 0:01:42.2]} 30. Bd3
{[%clk 0:00:03.1]} 30... Rg4 {[%clk 0:01:43.1]} 31. h3 {[%clk 0:00:02.8]} 31...
Rg6 {[%clk 0:01:39.4]} 32. Bxg6 {[%clk 0:00:03.4]} 32... Kxg6 {[%clk 0:01:41.1]}
33. Rb5 {[%clk 0:00:05]} 33... b6 {[%clk 0:01:40.7]} 34. e4 {[%clk 0:00:05.9]}
34... Nc7 {[%clk 0:01:42.1]} 35. Rb4 {[%clk 0:00:02.5]} 35... Bxb4 {[%clk
0:01:43]} 36. axb4 {[%clk 0:00:04.3]} 36... Kf6 {[%clk 0:01:44.6]} 37. Ke3
{[%clk 0:00:05.4]} 37... Nb5 {[%clk 0:01:44.8]} 38. g4 {[%clk 0:00:06.1]} 38...
Kg5 {[%clk 0:01:43]} 39. d5 {[%clk 0:00:04.9]} 39... Bf7 {[%clk 0:01:43.4]} 40.
Kd3 {[%clk 0:00:05.1]} 40... Kf4 {[%clk 0:01:43.6]} 41. Kc4 {[%clk 0:00:04.2]}
41... Nd6+ {[%clk 0:01:44.9]} 42. Kd4 {[%clk 0:00:05.7]} 42... Nxe4 {[%clk
0:01:45.3]} 43. h4 {[%clk 0:00:07.6]} 43... Nd6 {[%clk 0:01:45.4]} 44. h5 {[%clk
0:00:07.5]} 44... Kxg4 {[%clk 0:01:44.9]} 45. Ke5 {[%clk 0:00:08.6]} 45... Nc4+
{[%clk 0:01:44.3]} 46. Kd4 {[%clk 0:00:07.6]} 46... Kxh5 {[%clk 0:01:25.9]} 47.
Kxc4 {[%clk 0:00:08.2]} 47... Kg5 {[%clk 0:01:24.9]} 48. Kb5 {[%clk 0:00:08.1]}
48... Bxd5 {[%clk 0:01:25.1]} 49. Ka6 {[%clk 0:00:08.9]} 49... Bc4+ {[%clk
0:01:24.7]} 50. b5 {[%clk 0:00:10]} 50... Bxb5+ {[%clk 0:01:17.3]} 51. Kxa7
{[%clk 0:00:11.9]} 51... Bc4 {[%clk 0:01:13.6]} 52. Kxb6 {[%clk 0:00:13.8]}
52... Bf7 {[%clk 0:01:14.3]} 53. b4 {[%clk 0:00:13.3]} 53... Bc4 {[%clk
0:01:14.6]} 54. Kc5 {[%clk 0:00:14.5]} 54... Bd3 {[%clk 0:01:15.8]} 55. b5
{[%clk 0:00:15.8]} 55... Bxb5 {[%clk 0:01:16.9]} 1/2-1/2

[Event "*** Titled Tuesday 3|2 Blitz"]
[Site "Chess.com"]
[Date "2015.05.05"]
[Round "6"]
[White "pedromartinez91"]
[Black "facu57"]
[Result "0-1"]
[WhiteElo "2156"]
[BlackElo "2184"]
[TimeControl "180+2"]
[EndTime "12:18:36 PDT"]
[Termination "facu57 won on time"]

1. e4 {[%clk 0:02:59.6]} 1... c6 {[%clk 0:02:55.1]} 2. Nf3 {[%clk 0:02:57.1]}
2... d5 {[%clk 0:02:57]} 3. Nc3 {[%clk 0:02:54.1]} 3... dxe4 {[%clk 0:02:54.7]}
4. Nxe4 {[%clk 0:02:54.7]} 4... Nf6 {[%clk 0:02:54.7]} 5. Nxf6+ {[%clk
0:02:55.4]} 5... exf6 {[%clk 0:02:55.3]} 6. d4 {[%clk 0:02:55.4]} 6... Bd6
{[%clk 0:02:52.5]} 7. Qe2+ {[%clk 0:02:52]} 7... Be6 {[%clk 0:02:48.8]} 8. Be3
{[%clk 0:02:49.8]} 8... O-O {[%clk 0:02:45.3]} 9. Qd2 {[%clk 0:02:50.5]} 9...
Nd7 {[%clk 0:02:37.4]} 10. Be2 {[%clk 0:02:51.5]} 10... Nb6 {[%clk 0:02:33.4]}
11. Bf4 {[%clk 0:02:51.3]} 11... Nc4 {[%clk 0:02:26.4]} 12. Bxc4 {[%clk
0:02:51.8]} 12... Bxc4 {[%clk 0:02:24.8]} 13. O-O-O {[%clk 0:02:45.5]} 13...
Bxa2 {[%clk 0:02:21]} 14. Bxd6 {[%clk 0:02:16.8]} 14... Qxd6 {[%clk 0:02:20.8]}
15. Ne1 {[%clk 0:02:06.9]} 15... Rfe8 {[%clk 0:02:16]} 16. f3 {[%clk 0:01:47.7]}
16... Bc4 {[%clk 0:02:11.8]} 17. b3 {[%clk 0:01:47]} 17... Be2 {[%clk
0:02:05.4]} 18. Kb2 {[%clk 0:01:42.9]} 18... Bxd1 {[%clk 0:02:05.5]} 19. Qxd1
{[%clk 0:01:44.5]} 19... Rad8 {[%clk 0:02:07.1]} 20. c3 {[%clk 0:01:44.4]} 20...
c5 {[%clk 0:02:07.7]} 21. Nc2 {[%clk 0:01:44.3]} 21... cxd4 {[%clk 0:02:08.7]}
22. Nxd4 {[%clk 0:01:45.3]} 22... a6 {[%clk 0:02:01.8]} 23. Qc2 {[%clk
0:01:38.6]} 23... g6 {[%clk 0:01:58]} 24. Rd1 {[%clk 0:01:39.7]} 24... Qxh2
{[%clk 0:01:57.4]} 25. Rd2 {[%clk 0:01:37.7]} 25... Qe5 {[%clk 0:01:56.8]} 26.
Qd3 {[%clk 0:01:33.5]} 26... Re7 {[%clk 0:01:51.2]} 27. Rc2 {[%clk 0:01:25]}
27... Red7 {[%clk 0:01:51.6]} 28. Re2 {[%clk 0:01:25.7]} 28... Rxd4 {[%clk
0:01:36.3]} 29. cxd4 {[%clk 0:01:19.2]} 29... Qxd4+ {[%clk 0:01:35.7]} 30. Qxd4
{[%clk 0:01:19]} 30... Rxd4 {[%clk 0:01:37.4]} 31. Kc2 {[%clk 0:01:20.4]} 31...
b5 {[%clk 0:01:36.8]} 32. Kc3 {[%clk 0:01:21.6]} 32... Rd6 {[%clk 0:01:37.6]}
33. b4 {[%clk 0:01:22.2]} 33... h5 {[%clk 0:01:38.3]} 34. f4 {[%clk 0:01:18.5]}
34... Rc6+ {[%clk 0:01:39.1]} 35. Kb3 {[%clk 0:01:18.1]} 35... h4 {[%clk
0:01:39.7]} 36. Re3 {[%clk 0:01:14.8]} 36... Kg7 {[%clk 0:01:38.9]} 37. Rh3
{[%clk 0:01:14.7]} 37... g5 {[%clk 0:01:39.9]} 38. Re3 {[%clk 0:01:13.4]} 38...
Kg6 {[%clk 0:01:37.8]} 39. Rf3 {[%clk 0:01:02.1]} 39... g4 {[%clk 0:01:35.8]}
40. f5+ {[%clk 0:01:03]} 40... Kg5 {[%clk 0:01:36.7]} 41. Rf1 {[%clk 0:01:04.5]}
41... Rd6 {[%clk 0:01:37.4]} 42. Rf2 {[%clk 0:01:04.4]} 42... Rd3+ {[%clk
0:01:37.3]} 43. Kc2 {[%clk 0:01:04.9]} 43... Rd5 {[%clk 0:01:38.3]} 44. Kc3
{[%clk 0:01:04.7]} 44... Rxf5 {[%clk 0:01:39.3]} 45. Ra2 {[%clk 0:01:06.4]}
45... h3 {[%clk 0:01:37.7]} 46. g3 {[%clk 0:01:05]} 46... Rf3+ {[%clk 0:01:38]}
47. Kd4 {[%clk 0:01:06.1]} 47... Rxg3 {[%clk 0:01:39]} 48. Kc5 {[%clk
0:01:07.2]} 48... h2 {[%clk 0:01:40.1]} 49. Kb6 {[%clk 0:01:08.3]} 49... h1=Q
{[%clk 0:01:40.2]} 50. Ka5 {[%clk 0:01:09.4]} 50... Qb1 {[%clk 0:01:37.1]} 51.
Rf2 {[%clk 0:01:06.7]} 51... Ra3+ {[%clk 0:01:37.2]} 52. Kb6 {[%clk 0:01:07.4]}
52... Qg1 {[%clk 0:01:38.7]} 53. Kb7 {[%clk 0:01:08.5]} 53... Qxf2 {[%clk
0:01:39.4]} 0-1

[Event "*** Titled Tuesday 3|2 Blitz"]
[Site "Chess.com"]
[Date "2015.05.05"]
[Round "6"]
[White "Haykos"]
[Black "Recombinant"]
[Result "1-0"]
[WhiteElo "2208"]
[BlackElo "2134"]
[TimeControl "180+2"]
[EndTime "12:18:38 PDT"]
[Termination "Haykos won by resignation"]

1. e4 {[%clk 0:03:01.9]} 1... c5 {[%clk 0:02:59]} 2. Nf3 {[%clk 0:03:02.2]} 2...
d6 {[%clk 0:03:00.1]} 3. Bb5+ {[%clk 0:03:02.2]} 3... Bd7 {[%clk 0:03:00.7]} 4.
Bxd7+ {[%clk 0:03:01.9]} 4... Qxd7 {[%clk 0:03:02.6]} 5. O-O {[%clk 0:02:56.5]}
5... Nc6 {[%clk 0:03:03.2]} 6. d4 {[%clk 0:02:36.8]} 6... cxd4 {[%clk
0:03:03.8]} 7. Nxd4 {[%clk 0:02:38.2]} 7... Nf6 {[%clk 0:03:05.1]} 8. Nc3 {[%clk
0:02:38.1]} 8... g6 {[%clk 0:03:05.7]} 9. Bg5 {[%clk 0:02:29.2]} 9... Bg7 {[%clk
0:02:43.9]} 10. Re1 {[%clk 0:02:17.9]} 10... O-O {[%clk 0:02:43.3]} 11. Nf3
{[%clk 0:02:18.8]} 11... Rfd8 {[%clk 0:02:40.4]} 12. Nd5 {[%clk 0:02:09.4]}
12... Nxd5 {[%clk 0:02:19.6]} 13. exd5 {[%clk 0:02:10.1]} 13... Ne5 {[%clk
0:02:20.6]} 14. c3 {[%clk 0:01:50.2]} 14... h6 {[%clk 0:02:07.5]} 15. Bh4 {[%clk
0:01:13]} 15... Re8 {[%clk 0:02:07]} 16. Bg3 {[%clk 0:01:09.6]} 16... Nxf3+
{[%clk 0:02:01.1]} 17. Qxf3 {[%clk 0:01:11.5]} 17... Rac8 {[%clk 0:01:57.5]} 18.
Re2 {[%clk 0:01:11.7]} 18... Rc5 {[%clk 0:01:53.9]} 19. Qd3 {[%clk 0:01:06.4]}
19... Qb5 {[%clk 0:01:52.5]} 20. Rd1 {[%clk 0:01:03.5]} 20... Qd7 {[%clk
0:01:25.1]} 21. h3 {[%clk 0:00:56.2]} 21... Bf6 {[%clk 0:01:14.6]} 22. Bf4
{[%clk 0:00:47.6]} 22... Kg7 {[%clk 0:01:14]} 23. Qd2 {[%clk 0:00:46.4]} 23...
h5 {[%clk 0:01:15]} 24. Bh6+ {[%clk 0:00:46.2]} 24... Kh7 {[%clk 0:01:15.8]} 25.
Be3 {[%clk 0:00:48.1]} 25... Rcc8 {[%clk 0:01:07]} 26. Bg5 {[%clk 0:00:49]}
26... Bxg5 {[%clk 0:01:03.2]} 27. Qxg5 {[%clk 0:00:50.9]} 27... Kg7 {[%clk
0:00:52.8]} 28. Rde1 {[%clk 0:00:51]} 28... Rc7 {[%clk 0:00:50]} 29. Qh4 {[%clk
0:00:44]} 29... Qb5 {[%clk 0:00:48.8]} 30. Qd4+ {[%clk 0:00:23.5]} 30... Kg8
{[%clk 0:00:46.7]} 31. b3 {[%clk 0:00:24.8]} 31... Qa5 {[%clk 0:00:39.4]} 32. c4
{[%clk 0:00:24.8]} 32... a6 {[%clk 0:00:38.3]} 33. f4 {[%clk 0:00:25.3]} 33...
b5 {[%clk 0:00:34.3]} 34. f5 {[%clk 0:00:26.2]} 34... bxc4 {[%clk 0:00:34.3]}
35. fxg6 {[%clk 0:00:27.4]} 35... Qc5 {[%clk 0:00:21.4]} 36. gxf7+ {[%clk
0:00:26.9]} 36... Kxf7 {[%clk 0:00:23.3]} 37. Rf2+ {[%clk 0:00:28.1]} 37... Kg6
{[%clk 0:00:24.3]} 38. Qe4+ {[%clk 0:00:29]} 38... Kg7 {[%clk 0:00:21.5]} 39.
Qf5 {[%clk 0:00:21.2]} 39... e6 {[%clk 0:00:03.5]} 40. Qg5+ {[%clk 0:00:20.1]}
40... Kh7 {[%clk 0:00:03.8]} 41. Qxh5+ {[%clk 0:00:21.3]} 41... Kg7 {[%clk
0:00:03.7]} 42. Qxe8 {[%clk 0:00:21.6]} 42... exd5 {[%clk 0:00:04.6]} 43. Qf8+
{[%clk 0:00:22.6]} 43... Kg6 {[%clk 0:00:05.6]} 44. Re6+ {[%clk 0:00:23.8]} 1-0

[Event "*** Titled Tuesday 3|2 Blitz"]
[Site "Chess.com"]
[Date "2015.05.05"]
[Round "6"]
[White "zmaj23"]
[Black "destroyer305"]
[Result "1-0"]
[WhiteElo "2441"]
[BlackElo "2155"]
[TimeControl "180+2"]
[EndTime "12:18:39 PDT"]
[Termination "zmaj23 won by resignation"]

1. e4 {[%clk 0:03:01.9]} 1... c5 {[%clk 0:03:00.9]} 2. Nf3 {[%clk 0:02:59]} 2...
g6 {[%clk 0:03:02.3]} 3. d4 {[%clk 0:03:00.3]} 3... cxd4 {[%clk 0:03:04]} 4.
Nxd4 {[%clk 0:03:02.2]} 4... Nc6 {[%clk 0:03:04.9]} 5. Nc3 {[%clk 0:03:02.6]}
5... Bg7 {[%clk 0:03:06.2]} 6. Be3 {[%clk 0:03:02.6]} 6... Nf6 {[%clk
0:03:07.7]} 7. Bc4 {[%clk 0:03:01.2]} 7... O-O {[%clk 0:03:09.1]} 8. Bb3 {[%clk
0:02:58.3]} 8... d6 {[%clk 0:03:10.6]} 9. f3 {[%clk 0:02:58.5]} 9... Bd7 {[%clk
0:03:12]} 10. Qd2 {[%clk 0:02:58]} 10... Nxd4 {[%clk 0:03:13.5]} 11. Bxd4 {[%clk
0:02:57.4]} 11... b5 {[%clk 0:03:15.4]} 12. g4 {[%clk 0:02:45]} 12... a5 {[%clk
0:03:16]} 13. h4 {[%clk 0:02:37.5]} 13... a4 {[%clk 0:03:17.1]} 14. Bd5 {[%clk
0:02:36.2]} 14... b4 {[%clk 0:03:18.5]} 15. Ne2 {[%clk 0:02:34.5]} 15... e5
{[%clk 0:03:16.2]} 16. Bxa8 {[%clk 0:02:30.5]} 16... exd4 {[%clk 0:03:17.3]} 17.
g5 {[%clk 0:02:26.9]} 17... Qxa8 {[%clk 0:02:44.2]} 18. gxf6 {[%clk 0:02:26.9]}
18... Bxf6 {[%clk 0:02:46.1]} 19. Nf4 {[%clk 0:02:24.7]} 19... a3 {[%clk
0:02:44.3]} 20. Nd5 {[%clk 0:02:21.1]} 20... Bg7 {[%clk 0:02:42.7]} 21. b3
{[%clk 0:02:17.1]} 21... Be6 {[%clk 0:02:25.7]} 22. Nxb4 {[%clk 0:02:03.8]}
22... d5 {[%clk 0:02:06.2]} 23. exd5 {[%clk 0:01:57.3]} 23... Bxd5 {[%clk
0:02:07.4]} 24. Nxd5 {[%clk 0:01:52.6]} 24... Qxd5 {[%clk 0:02:09.3]} 25. O-O
{[%clk 0:01:54]} 25... d3 {[%clk 0:01:10.1]} 26. Rad1 {[%clk 0:01:47.5]} 26...
Qc5+ {[%clk 0:01:06.5]} 27. Kg2 {[%clk 0:01:42.9]} 27... dxc2 {[%clk 0:01:07]}
28. Rc1 {[%clk 0:01:40.9]} 28... Rc8 {[%clk 0:01:07.6]} 29. Rf2 {[%clk
0:01:28.3]} 29... Qh5 {[%clk 0:00:44.7]} 30. Rxc2 {[%clk 0:01:13.9]} 30... Rxc2
{[%clk 0:00:45.3]} 31. Qxc2 {[%clk 0:01:15.8]} 31... Qxh4 {[%clk 0:00:46.7]} 32.
Qe4 {[%clk 0:01:09.4]} 32... Qg5+ {[%clk 0:00:46.8]} 33. Qg4 {[%clk 0:01:09.4]}
33... Qc1 {[%clk 0:00:47.3]} 34. Re2 {[%clk 0:01:07.2]} 34... h5 {[%clk
0:00:46.7]} 35. Qc4 {[%clk 0:01:03.9]} 35... Qg5+ {[%clk 0:00:46.3]} 36. Kf1
{[%clk 0:01:03.4]} 36... Qf5 {[%clk 0:00:44.2]} 37. Re8+ {[%clk 0:00:59.5]}
37... Kh7 {[%clk 0:00:45.1]} 38. Kf2 {[%clk 0:00:58.5]} 38... Qf6 {[%clk
0:00:25]} 39. b4 {[%clk 0:00:55.7]} 39... Qb2+ {[%clk 0:00:24.9]} 40. Re2 {[%clk
0:00:53.1]} 40... Bd4+ {[%clk 0:00:24]} 41. Kg2 {[%clk 0:00:50.5]} 41... Qa1
{[%clk 0:00:24.9]} 42. Qxf7+ {[%clk 0:00:49]} 42... Kh6 {[%clk 0:00:26.6]} 43.
Qf4+ {[%clk 0:00:47.2]} 43... Kh7 {[%clk 0:00:26.8]} 44. Re7+ {[%clk 0:00:47.2]}
44... Bg7 {[%clk 0:00:28.5]} 45. Qf7 {[%clk 0:00:43.9]} 45... Qb2+ {[%clk
0:00:19.3]} 46. Kh3 {[%clk 0:00:41.7]} 46... Qc3 {[%clk 0:00:11.6]} 47. Qxg7+
{[%clk 0:00:38.2]} 1-0

[Event "*** Titled Tuesday 3|2 Blitz"]
[Site "Chess.com"]
[Date "2015.05.05"]
[Round "6"]
[White "Hikaru"]
[Black "ChessTrener"]
[Result "1/2-1/2"]
[WhiteElo "2826"]
[BlackElo "2527"]
[TimeControl "180+2"]
[EndTime "12:18:41 PDT"]
[Termination "Game drawn by agreement"]

1. d4 {[%clk 0:02:42.7]} 1... Nf6 {[%clk 0:03:00.6]} 2. Nf3 {[%clk 0:02:44.6]}
2... g6 {[%clk 0:03:01.2]} 3. c4 {[%clk 0:02:46]} 3... c5 {[%clk 0:03:02.1]} 4.
d5 {[%clk 0:02:46.7]} 4... b5 {[%clk 0:03:03.3]} 5. cxb5 {[%clk 0:02:45.1]} 5...
a6 {[%clk 0:03:04.5]} 6. bxa6 {[%clk 0:02:46.2]} 6... Bxa6 {[%clk 0:03:05.6]} 7.
Nc3 {[%clk 0:02:48.1]} 7... d6 {[%clk 0:03:06.6]} 8. g3 {[%clk 0:02:49.2]} 8...
Nbd7 {[%clk 0:03:07.6]} 9. Bg2 {[%clk 0:02:50.8]} 9... Bg7 {[%clk 0:03:09.2]}
10. Rb1 {[%clk 0:02:52.4]} 10... O-O {[%clk 0:03:10.8]} 11. O-O {[%clk
0:02:53.5]} 11... Qa5 {[%clk 0:03:11.4]} 12. Qc2 {[%clk 0:02:54.2]} 12... Rfb8
{[%clk 0:03:12.8]} 13. Bd2 {[%clk 0:02:55.1]} 13... Ne8 {[%clk 0:03:13.8]} 14.
b3 {[%clk 0:02:54.1]} 14... Nc7 {[%clk 0:03:14.8]} 15. Rfc1 {[%clk 0:02:50.3]}
15... Bc8 {[%clk 0:03:15.3]} 16. a4 {[%clk 0:02:49.7]} 16... Qb6 {[%clk
0:03:14.4]} 17. e4 {[%clk 0:02:50.4]} 17... Na6 {[%clk 0:03:14.9]} 18. Be3
{[%clk 0:02:51.6]} 18... Nb4 {[%clk 0:03:15.6]} 19. Qd1 {[%clk 0:02:53.1]} 19...
Ba6 {[%clk 0:03:15.2]} 20. Nd2 {[%clk 0:02:54.4]} 20... Ne5 {[%clk 0:03:12.2]}
21. Nb5 {[%clk 0:02:40.2]} 21... Bxb5 {[%clk 0:03:11.6]} 22. axb5 {[%clk
0:02:42.1]} 22... Qxb5 {[%clk 0:03:12.4]} 23. Bf1 {[%clk 0:02:40.8]} 23... Qb7
{[%clk 0:03:12.8]} 24. Nc4 {[%clk 0:02:41]} 24... Nxc4 {[%clk 0:03:12.4]} 25.
bxc4 {[%clk 0:02:40.1]} 25... Ra2 {[%clk 0:03:09.3]} 26. Rb3 {[%clk 0:02:39.2]}
26... Rba8 {[%clk 0:03:10]} 27. Rcb1 {[%clk 0:02:40.4]} 27... h5 {[%clk
0:03:04.8]} 28. h4 {[%clk 0:02:38.9]} 28... Bf6 {[%clk 0:03:05.6]} 29. Kg2
{[%clk 0:02:33.1]} 29... Ra1 {[%clk 0:03:04.1]} 30. Bd2 {[%clk 0:02:33.1]} 30...
Rxb1 {[%clk 0:03:04]} 31. Rxb1 {[%clk 0:02:33.9]} 31... Ra2 {[%clk 0:03:02.1]}
32. Be3 {[%clk 0:02:34.9]} 32... Qa6 {[%clk 0:02:58.6]} 33. Qb3 {[%clk
0:02:20.5]} 33... Kg7 {[%clk 0:02:45.5]} 34. Qd1 {[%clk 0:02:11.8]} 34... Nc2
{[%clk 0:02:38.5]} 35. Bc1 {[%clk 0:02:11.1]} 35... Bd4 {[%clk 0:02:29.4]} 36.
Bd3 {[%clk 0:01:55.1]} 36... Na3 {[%clk 0:01:58.6]} 37. Rb3 {[%clk 0:00:25.8]}
37... Rxf2+ {[%clk 0:01:48.2]} 38. Kh1 {[%clk 0:00:26.7]} 38... Qc8 {[%clk
0:01:44.6]} 39. g4 {[%clk 0:00:26.8]} 39... hxg4 {[%clk 0:01:23.9]} 40. Bf1
{[%clk 0:00:26.9]} 40... g3 {[%clk 0:01:16.1]} 41. Rxg3 {[%clk 0:00:26.7]} 41...
Nc2 {[%clk 0:01:06.9]} 42. h5 {[%clk 0:00:26.4]} 42... Be5 {[%clk 0:00:47.3]}
43. Rf3 {[%clk 0:00:27.1]} 43... Rxf3 {[%clk 0:00:44.9]} 44. Qxf3 {[%clk
0:00:29]} 44... Nd4 {[%clk 0:00:45]} 45. h6+ {[%clk 0:00:27.3]} 45... Kg8 {[%clk
0:00:40]} 46. Qh3 {[%clk 0:00:27]} 46... Qxh3+ {[%clk 0:00:39.1]} 47. Bxh3
{[%clk 0:00:28.9]} 47... e6 {[%clk 0:00:33.8]} 1/2-1/2

[Event "*** Titled Tuesday 3|2 Blitz"]
[Site "Chess.com"]
[Date "2015.05.05"]
[Round "6"]
[White "AlexanderL"]
[Black "MITerryble"]
[Result "1/2-1/2"]
[WhiteElo "2544"]
[BlackElo "2527"]
[TimeControl "180+2"]
[EndTime "12:21:25 PDT"]
[Termination "Game drawn - insufficient material"]

1. d4 {[%clk 0:03:01.9]} 1... e6 {[%clk 0:03:00.9]} 2. c4 {[%clk 0:03:02.4]}
2... Bb4+ {[%clk 0:03:01.1]} 3. Bd2 {[%clk 0:03:03.2]} 3... Qe7 {[%clk
0:03:02.1]} 4. g3 {[%clk 0:03:02.2]} 4... Nc6 {[%clk 0:03:00.6]} 5. Nf3 {[%clk
0:03:03]} 5... Nf6 {[%clk 0:03:01.3]} 6. Bg2 {[%clk 0:03:03.4]} 6... Bxd2+
{[%clk 0:03:02.2]} 7. Nbxd2 {[%clk 0:03:02.8]} 7... d6 {[%clk 0:03:01]} 8. O-O
{[%clk 0:03:03.4]} 8... e5 {[%clk 0:03:00.2]} 9. d5 {[%clk 0:03:00.9]} 9... Nb8
{[%clk 0:03:01.3]} 10. e4 {[%clk 0:03:00.4]} 10... a5 {[%clk 0:02:54.5]} 11. Ne1
{[%clk 0:03:01.2]} 11... Na6 {[%clk 0:02:55]} 12. Nd3 {[%clk 0:03:02.2]} 12...
O-O {[%clk 0:02:52]} 13. f4 {[%clk 0:03:03.1]} 13... Nd7 {[%clk 0:02:53.1]} 14.
f5 {[%clk 0:03:02.2]} 14... Qg5 {[%clk 0:02:42.9]} 15. Qe2 {[%clk 0:02:58.5]}
15... f6 {[%clk 0:02:25.4]} 16. Nf3 {[%clk 0:02:52.9]} 16... Qh6 {[%clk
0:02:22.1]} 17. Nf2 {[%clk 0:02:53.6]} 17... Ndc5 {[%clk 0:02:07.8]} 18. Ng4
{[%clk 0:02:51]} 18... Qh5 {[%clk 0:02:08.1]} 19. Nfxe5 {[%clk 0:02:49]} 19...
Kh8 {[%clk 0:02:07.2]} 20. Bf3 {[%clk 0:02:20.6]} 20... fxe5 {[%clk 0:01:53.6]}
21. Nxe5 {[%clk 0:02:19.5]} 21... Qe8 {[%clk 0:01:53.8]} 22. Ng4 {[%clk
0:02:14.6]} 22... Nd7 {[%clk 0:01:41.2]} 23. Qd2 {[%clk 0:02:09.3]} 23... Nac5
{[%clk 0:01:40]} 24. Rae1 {[%clk 0:02:08.4]} 24... Ne5 {[%clk 0:01:38.9]} 25.
Nxe5 {[%clk 0:02:08.4]} 25... Qxe5 {[%clk 0:01:38.9]} 26. Bh5 {[%clk 0:01:54]}
26... Bd7 {[%clk 0:01:14.8]} 27. Rf4 {[%clk 0:01:48.1]} 27... b5 {[%clk
0:01:13.1]} 28. Rh4 {[%clk 0:01:40.8]} 28... Kg8 {[%clk 0:01:14]} 29. cxb5
{[%clk 0:01:34.2]} 29... Bxb5 {[%clk 0:01:05.4]} 30. Kg2 {[%clk 0:01:35.6]}
30... Bd3 {[%clk 0:01:00.7]} 31. Bf3 {[%clk 0:01:29.1]} 31... a4 {[%clk
0:00:50.8]} 32. Kh3 {[%clk 0:01:22.2]} 32... Rab8 {[%clk 0:00:46.4]} 33. Qg5
{[%clk 0:01:17.6]} 33... Rf6 {[%clk 0:00:30.9]} 34. b4 {[%clk 0:01:04.7]} 34...
Nd7 {[%clk 0:00:26]} 35. Qd2 {[%clk 0:01:00.2]} 35... Bb5 {[%clk 0:00:22.1]} 36.
Rc1 {[%clk 0:01:01.2]} 36... Rc8 {[%clk 0:00:22.1]} 37. g4 {[%clk 0:00:56.3]}
37... Rff8 {[%clk 0:00:16.2]} 38. g5 {[%clk 0:00:56.3]} 38... c6 {[%clk
0:00:16]} 39. Rd1 {[%clk 0:00:24.3]} 39... cxd5 {[%clk 0:00:16.2]} 40. Qxd5+
{[%clk 0:00:25.7]} 40... Qxd5 {[%clk 0:00:16.8]} 41. Rxd5 {[%clk 0:00:27.6]}
41... Rc3 {[%clk 0:00:11.6]} 42. Kg2 {[%clk 0:00:22.8]} 42... Bc4 {[%clk
0:00:07.8]} 43. Rxd6 {[%clk 0:00:22.8]} 43... Ne5 {[%clk 0:00:09.7]} 44. Bd1
{[%clk 0:00:22.3]} 44... Bxa2 {[%clk 0:00:10.7]} 45. Bxa4 {[%clk 0:00:22.2]}
45... Ra3 {[%clk 0:00:08.1]} 46. Bd7 {[%clk 0:00:18.3]} 46... Bf7 {[%clk
0:00:05.9]} 47. Be6 {[%clk 0:00:18]} 47... Bxe6 {[%clk 0:00:06.5]} 48. Rxe6
{[%clk 0:00:18]} 48... Ra2+ {[%clk 0:00:06.1]} 49. Kg3 {[%clk 0:00:18.9]} 49...
Ra3+ {[%clk 0:00:07.3]} 50. Kg2 {[%clk 0:00:18.9]} 50... Rd8 {[%clk 0:00:07.7]}
51. Rf4 {[%clk 0:00:16.8]} 51... Rd2+ {[%clk 0:00:06]} 52. Rf2 {[%clk
0:00:17.4]} 52... Rxf2+ {[%clk 0:00:07.1]} 53. Kxf2 {[%clk 0:00:18.8]} 53...
Nd3+ {[%clk 0:00:09]} 54. Ke3 {[%clk 0:00:08.5]} 54... Nxb4+ {[%clk 0:00:10.9]}
55. Kd4 {[%clk 0:00:07.8]} 55... Nd3 {[%clk 0:00:12.8]} 56. g6 {[%clk
0:00:06.6]} 56... hxg6 {[%clk 0:00:13]} 57. fxg6 {[%clk 0:00:08.1]} 57... Kf8
{[%clk 0:00:13.7]} 58. Rb6 {[%clk 0:00:08.9]} 58... Nf4 {[%clk 0:00:12.8]} 59.
Ke5 {[%clk 0:00:06.6]} 59... Rf3 {[%clk 0:00:06.3]} 60. Rb8+ {[%clk 0:00:06.5]}
60... Ke7 {[%clk 0:00:07.5]} 61. Rb7+ {[%clk 0:00:08.1]} 61... Ke8 {[%clk
0:00:06.5]} 62. Rxg7 {[%clk 0:00:09.3]} 62... Rf2 {[%clk 0:00:07.6]} 63. h4
{[%clk 0:00:07.9]} 63... Nd3+ {[%clk 0:00:04.4]} 64. Kd4 {[%clk 0:00:07.4]}
64... Nf4 {[%clk 0:00:05.5]} 65. Ke3 {[%clk 0:00:08.8]} 65... Rf1 {[%clk
0:00:06.1]} 66. e5 {[%clk 0:00:07.5]} 66... Ne6 {[%clk 0:00:04.7]} 67. Rg8+
{[%clk 0:00:08.5]} 67... Ke7 {[%clk 0:00:06]} 68. h5 {[%clk 0:00:09.2]} 68...
Rh1 {[%clk 0:00:07.2]} 69. Rh8 {[%clk 0:00:09.6]} 69... Ng7 {[%clk 0:00:08.3]}
70. Rh7 {[%clk 0:00:10.1]} 70... Kf8 {[%clk 0:00:09.6]} 71. h6 {[%clk
0:00:06.9]} 71... Rxh6 {[%clk 0:00:09.1]} 72. Rxh6 {[%clk 0:00:06.2]} 72... Nf5+
{[%clk 0:00:10.2]} 73. Kf4 {[%clk 0:00:07.4]} 73... Nxh6 {[%clk 0:00:12.1]} 74.
e6 {[%clk 0:00:07]} 74... Ng8 {[%clk 0:00:10.7]} 75. Kf5 {[%clk 0:00:06.6]}
75... Kg7 {[%clk 0:00:10.8]} 76. Ke5 {[%clk 0:00:07.3]} 76... Kxg6 {[%clk
0:00:11.7]} 77. Kd6 {[%clk 0:00:08.7]} 77... Kf6 {[%clk 0:00:13]} 78. e7 {[%clk
0:00:10.6]} 78... Nxe7 {[%clk 0:00:14.1]} 1/2-1/2